Workbook

Sheet 表格样式3
A1: 贵阳市综合行政执法局2024年公开招聘局属事业单位工作人员面试成绩及进入体检环节人员名单
A2: 序号 | B2: 姓名 | C2: 准考证号 | D2: 单位 | E2: 报考岗位及代码 | F2: 笔试成绩 | G2: 笔试成绩（百分制） | H2: 笔试成绩30% | I2: 专业测试成绩 | J2: 专业测试成绩40% | K2: 笔试、专业测试成绩 | L2: 面试成绩 | M2: 面试成绩30% | N2: 笔试、专业测试、面试成绩 | O2: 综合排名 | P2: 是否进入体检
A3: 1 | B3: =[1]附件1!B23 -> 杨路宁 | C3: =[1]附件1!C23 -> 1152010200907 | D3: =[1]附件1!D23 -> 贵阳市城市绿化服务中心 | E3: =[1]附件1!E23 -> 01专业技术岗位 | F3: =[1]附件1!F23 -> 213 | G3: =[1]附件1!G23 -> 71.00 | H3: =[1]附件1!H23 -> 21.30 | I3: =[1]附件1!I23 -> 86 | J3: =[1]附件1!J23 -> 34.4 | K3: =[1]附件1!K23 -> 55.70 | L3: 84.8 | M3: =L3*0.3 -> 25.44 | N3: =K3+M3 -> 81.14 | O3: 1 | P3: 是
A4: 2 | B4: =[1]附件1!B25 -> 严欣 | C4: =[1]附件1!C25 -> 1152010200612 | D4: =[1]附件1!D24 -> 贵阳市城市绿化服务中心 | E4: =[1]附件1!E24 -> 01专业技术岗位 | F4: =[1]附件1!F25 -> 172 | G4: =[1]附件1!G25 -> 57.33 | H4: =[1]附件1!H25 -> 17.20 | I4: =[1]附件1!I25 -> 86 | J4: =[1]附件1!J25 -> 34.4 | K4: =[1]附件1!K25 -> 51.60 | L4: 76.2 | M4: =L4*0.3 -> 22.86 | N4: =K4+M4 -> 74.46 | O4: 2
A5: 3 | B5: =[1]附件1!B24 -> 刘妍 | C5: =[1]附件1!C24 -> 1152010200430 | D5: =[1]附件1!D25 -> 贵阳市城市绿化服务中心 | E5: =[1]附件1!E25 -> 01专业技术岗位 | F5: =[1]附件1!F24 -> 217 | G5: =[1]附件1!G24 -> 72.33 | H5: =[1]附件1!H24 -> 21.70 | I5: =[1]附件1!I24 -> 75 | J5: =[1]附件1!J24 -> 30 | K5: =[1]附件1!K24 -> 51.70 | L5: 缺考 | N5: 51.70 | O5: 3
A7: 4 | B7: 李志成 | C7: 1152010202130 | D7: 贵阳市市政工程服务中心 | E7: 01专业技术岗位 | F7: 190 | G7: 63.33 | H7: 19.00 | I7: 76.00 | J7: 30.4 | K7: 49.40 | L7: 78 | M7: 23.40 | N7: 72.80 | O7: 1 | P7: 是
A8: 5 | B8: 艾益合 | C8: 1152010201212 | D8: 贵阳市市政工程服务中心 | E8: 01专业技术岗位 | F8: 196 | G8: 65.33 | H8: 19.60 | I8: 69.00 | J8: 27.6 | K8: 47.20 | L8: 84.4 | M8: 25.32 | N8: 72.52 | O8: 2
A9: 6 | B9: 张砚墨 | C9: 1152010201411 | D9: 贵阳市市政工程服务中心 | E9: 01专业技术岗位 | F9: 179 | G9: 59.67 | H9: 17.90 | I9: 62.00 | J9: 24.8 | K9: 42.70 | L9: 80.8 | M9: 24.24 | N9: 66.94 | O9: 3
A11: 7 | B11: 王昌会 | C11: 1152010200104 | D11: 贵阳市环境卫生管理服务中心 | E11: 01专业技术岗位 | F11: 198 | G11: 66.00 | H11: 19.80 | I11: 89 | J11: 35.6 | K11: 55.40 | L11: 79 | M11: 23.70 | N11: =H11+J11+M11 -> 79.1 | O11: 1 | P11: 是
A12: 8 | B12: 夏思艺 | C12: 1152010201006 | D12: 贵阳市环境卫生管理服务中心 | E12: 01专业技术岗位 | F12: 182.5 | G12: 60.83 | H12: 18.25 | I12: 86 | J12: 34.4 | K12: 52.65 | L12: 82.6 | M12: 24.78 | N12: =H12+J12+M12 -> 77.43 | O12: 2
A13: 9 | B13: 阚成燕 | C13: 1152010200716 | D13: 贵阳市环境卫生管理服务中心 | E13: 01专业技术岗位 | F13: 171 | G13: 57.00 | H13: 17.10 | I13: 89 | J13: 35.6 | K13: 52.70 | L13: 76 | M13: 22.80 | N13: =H13+J13+M13 -> 75.5 | O13: 3
A15: 10 | B15: 陈准 | C15: 1152010200902 | D15: 贵阳市市政工程服务中心 | E15: 02专业技术岗位 | F15: 186.5 | G15: 62.17 | H15: 18.65 | I15: 82.00 | J15: 32.8 | K15: 51.45 | L15: 77.8 | M15: 23.34 | N15: 74.79 | O15: 1 | P15: 是
A16: 11 | B16: 冉栩金 | C16: 1152010201622 | D16: 贵阳市市政工程服务中心 | E16: 02专业技术岗位 | F16: 178.5 | G16: 59.50 | H16: 17.85 | I16: 66.00 | J16: 26.4 | K16: 44.25 | L16: 82.6 | M16: 24.78 | N16: 69.03 | O16: 2
A17: 12 | B17: 龙涛 | C17: 1152010202014 | D17: 贵阳市市政工程服务中心 | E17: 02专业技术岗位 | F17: 153.5 | G17: 51.17 | H17: 15.35 | I17: 66.00 | J17: 26.4 | K17: 41.75 | L17: 72.8 | M17: 21.84 | N17: 63.59 | O17: 3
A18: 序号 | B18: 姓名 | C18: 准考证号 | D18: 单位 | E18: 报考岗位及代码 | F18: 笔试成绩 | G18: 笔试成绩（百分制） | H18: 笔试成绩60% | I18: 面试成绩 | J18: 面试成绩40% | K18: 笔试、面试成绩 | L18: 综合排名 | M18: 是否进入体检
A19: 13 | B19: 李龙曾 | C19: 1152010200908 | D19: 贵阳市城市管理信息中心 | E19: 01管理岗位 | F19: 215.5 | G19: 71.83 | H19: 43.1 | I19: 81.8 | J19: =I19*0.4 -> 32.72 | K19: =H19+J19 -> 75.82 | L19: 1 | M19: 是
A20: 14 | B20: 漆香美 | C20: 1150210200202 | D20: 贵阳市城市管理信息中心 | E20: 01管理岗位 | F20: 195 | G20: =F20/3 -> 65 | H20: =G20*0.6 -> 39 | I20: 79 | J20: =I20*0.4 -> 31.6 | K20: =H20+J20 -> 70.6 | L20: 2
A21: 15 | B21: 陈肖 | C21: 1152010200820 | D21: 贵阳市城市管理信息中心 | E21: 01管理岗位 | F21: 219 | G21: =F21/3 -> 73 | H21: =G21*0.6 -> 43.8 | I21: 缺考 | K21: 43.8 | L21: 3
A23: 16 | B23: 夏少梅 | C23: 1152010201917 | D23: 贵阳市城市绿化服务中心 | E23: 02管理岗位 | F23: 185 | G23: 61.67 | H23: 37 | I23: 78.4 | J23: =I23*0.4 -> 31.36 | K23: =J23+H23 -> 68.36 | L23: 1 | M23: 是
A24: 17 | B24: 韦佳兴 | C24: 1152010200301 | D24: 贵阳市城市绿化服务中心 | E24: 02管理岗位 | F24: 150 | G24: 50.00 | H24: 30 | I24: 79 | J24: =I24*0.4 -> 31.60 | K24: =J24+H24 -> 61.60 | L24: 2
A25: 18 | B25: 黄紫莲 | C25: 1152010201905 | D25: 贵阳市城市绿化服务中心 | E25: 02管理岗位 | F25: 148.5 | G25: 49.50 | H25: 29.7 | I25: 75.2 | J25: 30.08 | K25: 59.78 | L25: 3
A27: 19 | B27: 田占平 | C27: 1152010200823 | D27: 贵阳市市政工程服务中心 | E27: 03管理岗位 | F27: 196.5 | G27: 65.5 | H27: 39.30 | I27: 82 | J27: 32.8 | K27: 72.1 | L27: 1 | M27: 是
A28: 20 | B28: 韩闽会 | C28: 1152010201404 | D28: 贵阳市市政工程服务中心 | E28: 03管理岗位 | F28: 198.5 | G28: 66.17 | H28: 39.70 | I28: 78.6 | J28: 31.44 | K28: 71.14 | L28: 2
A29: 21 | B29: 付诗雨 | C29: 1152010201303 | D29: 贵阳市市政工程服务中心 | E29: 03管理岗位 | F29: 210 | G29: 70 | H29: 42.00 | I29: 缺考 | K29: 42 | L29: 3
A31: 22 | B31: 姜加美 | C31: 1152010201711 | D31: 贵阳市市政工程服务中心 | E31: 04管理岗位 | F31: 205.5 | G31: 68.5 | H31: 41.10 | I31: 83.2 | J31: 33.28 | K31: 74.38 | L31: 1 | M31: 是
A32: 23 | B32: 冶林扣 | C32: 1152010201702 | D32: 贵阳市市政工程服务中心 | E32: 04管理岗位 | F32: 195 | G32: 65 | H32: 39.00 | I32: 80.8 | J32: 32.32 | K32: 71.32 | L32: 2
A33: 24 | B33: 贾逢鑫 | C33: 1152010202217 | D33: 贵阳市市政工程服务中心 | E33: 04管理岗位 | F33: 191 | G33: 63.67 | H33: 38.20 | I33: 78.2 | J33: 31.28 | K33: 69.48 | L33: 3
